fUST/lending_fUST_20250924
["ID","MTS","AMOUNT","RATE_DAILY","PERIOD"]
[387408372,1758717060450,-873.83,0.00021643,2]
[387408373,1758717060461,-480.0,0.00021643,2]
[387408374,1758717060470,-480.0,0.00021643,2]
[387408375,1758717060480,-659.07,0.00021643,2]
[387408376,1758717060489,-480.0,0.00021643,2]
[387408377,1758717060498,-497.65,0.00021643,2]
[387408378,1758717060508,-480.0,0.00021643,2]
[387408379,1758717060517,-480.0,0.00021643,2]
[387408380,1758717060526,-530.81,0.00021643,2]
[387408381,1758717060537,-480.0,0.00021643,2]
[387408382,1758717060546,-865.45,0.00021643,2]
[387408383,1758717060556,-1630.0,0.00021643,2]
[387408384,1758717060565,-480.0,0.00021643,2]
[387408385,1758717060575,-694.09,0.00021643,2]
[387408386,1758717060584,-480.0,0.00021643,2]
[387408387,1758717060593,-890.27,0.00021643,2]
[387408388,1758717060603,-818.2,0.00021643,2]
[387408389,1758717060612,-480.0,0.00021643,2]
[387408390,1758717060621,-480.0,0.00021643,2]
[387408391,1758717060631,-480.0,0.00021643,2]
[387408392,1758717060641,-480.0,0.00021643,2]
[387408393,1758717060650,-480.0,0.00021643,2]
[387408394,1758717060659,-480.0,0.00021643,2]
[387408395,1758717060669,-1072.49,0.00021643,2]
[387408396,1758717060679,-572.58388793,0.00021643,2]
[387408397,1758717060688,-384.2801543,0.00021643,2]
[387408398,1758717060697,-642.71,0.00021643,2]
[387408399,1758717060706,-559.36,0.00021643,2]
[387408400,1758717060715,-480.0,0.00021643,2]
[387408401,1758717060724,-1563.27,0.00021643,2]
[387408402,1758717060733,-983.42,0.00021643,2]
[387408403,1758717060743,-480.0,0.00021643,2]
[387408404,1758717060753,-480.0,0.00021643,2]
[387408405,1758717060763,-480.0,0.00021643,2]
[387408406,1758717060772,-480.0,0.00021643,2]
[387408407,1758717060782,-480.0,0.00021643,2]
[387408408,1758717060792,-480.0,0.00021643,2]
[387408409,1758717060801,-480.0,0.00021643,2]
[387408410,1758717060810,-480.0,0.00021643,2]
[387408411,1758717060820,-480.0,0.00021643,2]
[387408412,1758717060829,-1168.5,0.00021643,2]
[387408413,1758717060839,-698.07,0.00021643,2]
[387408414,1758717060848,-834.86,0.00021643,2]
[387408415,1758717060857,-2463.32,0.00021643,2]
[387408416,1758717060866,-480.0,0.00021643,2]
[387408417,1758717060875,-855.89,0.00021643,2]
[387408418,1758717060885,-626.95,0.00021643,2]
[387408419,1758717060895,-480.0,0.00021643,2]
[387408420,1758717060904,-1016.88,0.00021643,2]
[387408421,1758717060913,-884.3,0.00021643,2]
[387408422,1758717060922,-480.0,0.00021643,2]
[387408423,1758717060931,-480.0,0.00021643,2]
[387408424,1758717060940,-480.0,0.00021643,2]
[387408425,1758717060950,-480.0,0.00021643,2]
[387408426,1758717060959,-4337.65,0.00021643,2]
[387408427,1758717060968,-614.74,0.00021643,2]
[387408428,1758717060977,-495.32300962,0.00021643,2]
[387408429,1758717060986,-1093.96,0.00021643,2]
[387408430,1758717060995,-480.0,0.00021643,2]
[387408431,1758717061005,-480.0,0.00021643,2]
[387408432,1758717061014,-749.94,0.00021643,2]
[387408433,1758717061025,-2365.09,0.00021643,2]
[387408434,1758717061038,-151.0,0.0002166,2]
[387408435,1758717061048,-151.0,0.000217,3]
[387408436,1758717061058,-586.1331603,0.00021753,2]
[387408437,1758717061074,-586.1331603,0.00021753,2]
[387408438,1758717061084,-588.5325414,0.00021753,2]
[387408439,1758717061093,-448.3882223,0.00021753,2]
[387408440,1758717061103,-160.0,0.0002177,2]
[387408441,1758717061114,-160.0,0.0002177,2]
[387408442,1758717061123,-160.0,0.0002177,2]
[387408443,1758717061134,-160.0,0.0002177,2]
[387408444,1758717061144,-160.0,0.0002177,2]
[387408445,1758717061154,-160.0,0.0002177,2]
[387408446,1758717061164,-233.62170814,0.0002177,2]
[387408447,1758717061174,-532.2324375,0.0002177,2]
[387408448,1758717061184,-360.0,0.00021776,2]
[387408449,1758717061193,-335.26272926,0.00021917,2]
[387408450,1758717061203,-480.0,0.00021917,2]
[387408451,1758717061212,-320.08521035,0.00021917,2]
[387408452,1758717061221,-480.0,0.00021917,2]
[387408453,1758717061230,-452.24890279,0.00021917,2]
[387408454,1758717061239,-480.0,0.00021917,2]
[387408455,1758717061248,-480.0,0.00021917,2]
[387408456,1758717061257,-480.0,0.00021917,2]
[387408457,1758717061266,-897.88,0.00021917,2]
[387408458,1758717061275,-480.0,0.00021917,2]
[387408459,1758717061286,-480.0,0.00021917,2]
[387408460,1758717061295,-480.16,0.00021917,2]
[387408461,1758717061304,-480.0,0.00021917,2]
[387408462,1758717061313,-500.0,0.00021917,2]
[387408463,1758717061322,-461.04682716,0.00021917,2]
[387408464,1758717061331,-873.83,0.00021917,2]
[387408465,1758717061340,-480.0,0.00021917,2]
[387408466,1758717061350,-480.0,0.00021917,2]
[387408467,1758717061359,-659.07,0.00021917,2]
[387408468,1758717061368,-497.65,0.00021917,2]
[387408469,1758717061377,-480.0,0.00021917,2]
[387408470,1758717061387,-480.0,0.00021917,2]
[387408471,1758717061396,-530.81,0.00021917,2]
[387408472,1758717061405,-480.0,0.00021917,2]
[387408473,1758717061414,-865.45,0.00021917,2]
[387408474,1758717061423,-1630.0,0.00021917,2]
[387408475,1758717061432,-480.0,0.00021917,2]
[387408476,1758717061441,-694.09,0.00021917,2]
[387408477,1758717061450,-480.0,0.00021917,2]
[387408478,1758717061458,-890.27,0.00021917,2]
[387408479,1758717061468,-818.2,0.00021917,2]
[387408480,1758717061477,-480.0,0.00021917,2]
[387408481,1758717061487,-480.0,0.00021917,2]
[387408482,1758717061496,-480.0,0.00021917,2]
[387408483,1758717061505,-480.0,0.00021917,2]
[387408484,1758717061515,-429.02,0.00021917,2]
[387408485,1758717061524,-480.0,0.00021917,2]
[387408486,1758717061535,-1072.49,0.00021917,2]
[387408487,1758717061544,-642.71,0.00021917,2]
[387408488,1758717061553,-480.0,0.00021917,2]
[387408489,1758717061563,-559.36,0.00021917,2]
[387408490,1758717061572,-1563.27,0.00021917,2]
[387408491,1758717061581,-983.42,0.00021917,2]
[387408492,1758717061591,-480.0,0.00021917,2]
[387408493,1758717061600,-230.45573537,0.00021917,2]
[387408494,1758717061609,-480.0,0.00021917,2]
[387408495,1758717061618,-480.0,0.00021917,2]
[387408496,1758717061627,-480.0,0.00021917,2]
[387408497,1758717061637,-480.0,0.00021917,2]
[387408498,1758717061646,-480.0,0.00021917,2]
[387408499,1758717061656,-480.0,0.00021917,2]
[387408500,1758717061665,-480.0,0.00021917,2]
[387408501,1758717061676,-1168.5,0.00021917,2]
[387408502,1758717061685,-698.07,0.00021917,2]
[387408503,1758717061694,-834.86,0.00021917,2]
[387408504,1758717061703,-2463.32,0.00021917,2]
[387408505,1758717061713,-480.0,0.00021917,2]
[387408506,1758717061723,-855.89,0.00021917,2]
[387408507,1758717061733,-626.95,0.00021917,2]
[387408508,1758717061745,-480.0,0.00021917,2]
[387408509,1758717061754,-1016.88,0.00021917,2]
[387408510,1758717061764,-884.3,0.00021917,2]
[387408511,1758717061774,-480.0,0.00021917,2]
[387408512,1758717061784,-480.0,0.00021917,2]
[387408513,1758717061793,-480.0,0.00021917,2]
[387408514,1758717061803,-480.0,0.00021917,2]
[387408515,1758717061812,-4337.65,0.00021917,2]
[387408516,1758717061821,-614.74,0.00021917,2]
[387408517,1758717061830,-1093.96,0.00021917,2]
[387408518,1758717061839,-480.0,0.00021917,2]
[387408519,1758717061849,-480.0,0.00021917,2]
[387408520,1758717061858,-749.94,0.00021917,2]
[387408521,1758717061867,-2365.09,0.00021917,2]
[387408522,1758717061876,-151.0,0.00021918,2]
[387408523,1758717061885,-84.23579302,0.00021918,2]
[387408524,1758717062138,-1433.25,0.00019178,2]
[387408525,1758717062150,-1140.98621968,0.00019452,2]
[387408526,1758717062287,-292.26378032,0.00019452,2]
[387408527,1758717062297,-1433.25,0.00019726,2]
[387408528,1758717062307,-1433.25,0.0002,2]
[387408529,1758717062316,-1433.25,0.00020273,2]
[387408530,1758717062326,-1433.25,0.00020547,2]
[387408531,1758717062336,-1433.25,0.00020821,2]
[387408532,1758717062345,-1433.25,0.00021095,2]
[387408533,1758717062355,-1433.25,0.00021369,2]
[387408534,1758717062364,-1433.25,0.00021643,2]
[387408535,1758717062374,-1433.25,0.00021917,2]
[387408536,1758717062383,-66.76420698,0.00021918,2]
[387408537,1758717062393,-151.0,0.00021918,2]
[387408538,1758717062402,-151.0,0.00021918,2]
[387408539,1758717062412,-151.0,0.00021918,2]
[387408540,1758717062421,-151.0,0.00021918,2]
[387408541,1758717062430,-151.0,0.00021918,2]
[387408542,1758717062439,-151.0,0.00021918,2]
[387408543,1758717062448,-151.0,0.00021918,2]
[387408544,1758717062458,-151.0,0.00021918,7]
[387408545,1758717062467,-151.0,0.00021918,7]
[387408546,1758717062477,-151.0,0.00021918,7]
[387408547,1758717062486,-151.0,0.00021918,7]
[387408548,1758717062495,-165.0,0.00022,2]
[387408549,1758717062505,-168.0,0.0002201,2]
[387408550,1758717062514,-4584.0,0.0002202,2]
[387408551,1758717062524,-3396.28176754,0.00022044,2]
[387408552,1758717062534,-151.0,0.000221,10]
[387408553,1758717062543,-1000.0,0.00022112,2]
[387408554,1758717062553,-1134.14020568,0.00022113,2]
[387408555,1758717062562,-1000.0,0.00022113,2]
[387408556,1758717062572,-184.53127817,0.00022131,2]
[387408557,1758717062581,-501.91558412,0.00022138,2]
[387408558,1758717062591,-510.66039152,0.00022138,2]
[387408559,1758717062600,-414.90125369,0.00022144,2]
[387408560,1758717062609,-2000.0,0.00022152,2]
[387408561,1758717062619,-410.0,0.00022162,2]
[387408562,1758717062628,-447.9495755,0.00022191,2]
[387408563,1758717062638,-480.0,0.00022191,2]
[387408564,1758717062647,-480.0,0.00022191,2]
[387408565,1758717062658,-480.0,0.00022191,2]
[387408566,1758717062667,-480.0,0.00022191,2]
[387408567,1758717062677,-175.969,0.00022191,2]
[387408568,1758717062686,-897.88,0.00022191,2]
[387408569,1758717062696,-480.0,0.00022191,2]
[387408570,1758717062705,-480.0,0.00022191,2]
[387408571,1758717062715,-480.16,0.00022191,2]
[387408572,1758717062724,-480.0,0.00022191,2]
[387408573,1758717062733,-873.83,0.00022191,2]
[387408574,1758717062743,-480.0,0.00022191,2]
[387408575,1758717062752,-352.22685273,0.00022191,2]
[387408576,1758717062761,-659.07,0.00022191,2]
[387408577,1758717062771,-497.65,0.00022191,2]
[387408578,1758717062780,-480.0,0.00022191,2]
[387408579,1758717062789,-530.81,0.00022191,2]
[387408580,1758717062798,-480.0,0.00022191,2]
[387408581,1758717062807,-865.45,0.00022191,2]
[387408582,1758717062816,-151.0,0.00022191,7]
[387408583,1758717062826,-1630.0,0.00022191,2]
[387408584,1758717062835,-480.0,0.00022191,2]
[387408585,1758717062845,-694.09,0.00022191,2]
[387408586,1758717062854,-480.0,0.00022191,2]
[387408587,1758717062863,-890.27,0.00022191,2]
[387408588,1758717062874,-818.2,0.00022191,2]
[387408589,1758717062883,-480.0,0.00022191,2]
[387408590,1758717062892,-581.46,0.00022191,2]
[387408591,1758717062901,-480.0,0.00022191,2]
[387408592,1758717062912,-480.0,0.00022191,2]
[387408593,1758717062921,-480.0,0.00022191,2]
[387408594,1758717062931,-151.0,0.00022191,7]
[387408595,1758717062941,-151.0,0.00022191,7]
[387408596,1758717062951,-1072.49,0.00022191,2]
[387408597,1758717062960,-642.71,0.00022191,2]
[387408598,1758717062970,-480.0,0.00022191,2]
[387408599,1758717062980,-559.36,0.00022191,2]
[387408600,1758717062990,-1563.27,0.00022191,2]
[387408601,1758717063000,-983.42,0.00022191,2]
[387408602,1758717063009,-480.0,0.00022191,2]
[387408603,1758717063018,-480.0,0.00022191,2]
[387408604,1758717063028,-480.0,0.00022191,2]
[387408605,1758717063038,-480.0,0.00022191,2]
[387408606,1758717063048,-536.55403052,0.00022191,2]
[387408607,1758717063058,-480.0,0.00022191,2]
[387408608,1758717063072,-480.0,0.00022191,2]
[387408609,1758717063081,-480.0,0.00022191,2]
[387408610,1758717063091,-1168.5,0.00022191,2]
[387408611,1758717063100,-698.07,0.00022191,2]
[387408612,1758717063110,-834.86,0.00022191,2]
[387408613,1758717063120,-2463.32,0.00022191,2]
[387408614,1758717063130,-480.0,0.00022191,2]
[387408615,1758717063139,-855.89,0.00022191,2]
[387408616,1758717063151,-626.95,0.00022191,2]
[387408617,1758717063161,-480.0,0.00022191,2]
[387408618,1758717063171,-1016.88,0.00022191,2]
[387408619,1758717063181,-112.52733131,0.00022191,2]
[387408620,1758717293755,273.41,0.00023661,30]
[387408660,1758717455052,59103.96,0.00024,30]
[387408687,1758717522387,271.92,0.00022977,30]
[387408688,1758717533139,234.20722983,0.00027397,120]
[387408788,1758717654621,1000.0,0.00024,30]
[387408815,1758718011098,-221.05770217,0.00018176,2]
[387408817,1758718219574,270.44,0.00023445,30]
[387408819,1758718232412,-183.4866625,0.00018149,2]
[387408820,1758718232426,-9.62311693,0.00018176,2]
[387408821,1758718232440,-165.00135557,0.00018601,2]
[387408822,1758718232452,-326.61891334,0.00018923,2]
[387408823,1758718232465,-190.28124787,0.00019078,2]
[387408824,1758718232478,-300.0,0.00019167,2]
[387408825,1758718232492,-300.0,0.00019167,2]
[387408826,1758718232506,-300.0,0.00019167,2]
[387408827,1758718232519,-854.31845899,0.00019167,2]
[387408828,1758718232536,-345.68154101,0.00019167,2]
[387408829,1758718232553,-602.61685635,0.00019168,3]
[387408830,1758718232580,-373.58314365,0.00019168,3]
[387408831,1758718232594,-488.1,0.00019168,3]
[387408832,1758718232607,-244.05,0.00019168,3]
[387408834,1758718232618,-732.19,0.00019168,3]
[387408835,1758718232628,-12988.60967463,0.00019175,2]
[387408836,1758718232642,-16484.49125298,0.00019175,2]
[387408837,1758718232654,-500.0,0.00019176,2]
[387408838,1758718232668,-500.0,0.00019176,2]
[387408839,1758718232681,-500.0,0.00019176,2]
[387408840,1758718232695,-500.0,0.00019176,2]
[387408841,1758718232708,-575.57536166,0.00019176,2]
[387408842,1758718232722,-500.0,0.00019176,2]
[387408843,1758718232733,-575.73871269,0.00019176,2]
[387408844,1758718232744,-500.0,0.00019176,2]
[387408845,1758718232757,-382.95447309,0.00019176,2]
[387408846,1758718232771,-312.75152698,0.00019176,2]
[387408847,1758718232784,-515.97720912,0.00019176,2]
[387408848,1758718232796,-208.52013093,0.00019177,2]
[387408849,1758718232807,-552.71240923,0.00019177,2]
[387408850,1758718232822,-500.0,0.00019177,2]
[387408851,1758718232833,-500.0,0.00019177,2]
[387408852,1758718232844,-500.0,0.00019177,2]
[387408853,1758718232857,-500.0,0.00019177,2]
[387408854,1758718232871,-500.0,0.00019177,2]
[387408855,1758718232883,-500.0,0.00019177,2]
[387408856,1758718232895,-500.0,0.00019177,2]
[387408857,1758718232907,-500.0,0.00019177,2]
[387408858,1758718232919,-500.0,0.00019177,2]
[387408859,1758718232931,-500.0,0.00019177,2]
[387408860,1758718232943,-500.0,0.00019177,2]
[387408861,1758718232955,-507.24565202,0.00019177,2]
[387408862,1758718232967,-500.0,0.00019177,2]
[387408863,1758718232979,-500.0,0.00019177,2]
[387408864,1758718232991,-500.0,0.00019177,2]
[387408865,1758718233003,-500.0,0.00019177,2]
[387408866,1758718233015,-500.0,0.00019177,2]
[387408867,1758718233027,-500.0,0.00019177,2]
[387408868,1758718233039,-500.0,0.00019177,2]
[387408869,1758718233052,-500.0,0.00019177,2]
[387408870,1758718233064,-300.0,0.00019177,2]
[387408871,1758718233076,-500.0,0.00019177,2]
[387408872,1758718233090,-500.0,0.00019177,2]
[387408873,1758718233102,-500.0,0.00019177,2]
[387408874,1758718233114,-500.0,0.00019177,2]
[387408875,1758718233126,-500.0,0.00019177,2]
[387408876,1758718233138,-480.0,0.00019178,2]
[387408877,1758718233151,-246.52852325,0.00019178,2]
[387408878,1758718233163,-480.0,0.00019178,2]
[387408879,1758718233176,-480.0,0.00019178,2]
[387408880,1758718233188,-480.0,0.00019178,2]
[387408881,1758718233200,-480.0,0.00019178,2]
[387408882,1758718233212,-480.0,0.00019178,2]
[387408883,1758718233225,-480.0,0.00019178,2]
[387408884,1758718233238,-480.0,0.00019178,2]
[387408885,1758718233251,-480.0,0.00019178,2]
[387408886,1758718233264,-490.42354924,0.00019178,2]
[387408887,1758718233278,-480.0,0.00019178,2]
[387408888,1758718233291,-407.4427133,0.00019178,2]
[387408889,1758718233302,-480.0,0.00019178,2]
[387408890,1758718233312,-480.0,0.00019178,2]
[387408891,1758718233467,-460.99794504,0.00019178,2]
[387408892,1758718233482,-480.89926709,0.00019178,2]
[387408893,1758718233492,-339.9618411,0.00019178,2]
[387408894,1758718233502,-480.0,0.00019178,2]
[387408895,1758718233512,-482.50639491,0.00019178,2]
[387408896,1758718233522,-480.0,0.00019178,2]
[387408897,1758718233532,-480.0,0.00019178,2]
[387408898,1758718233542,-480.0,0.00019178,2]
[387408899,1758718233552,-480.0,0.00019178,2]
[387408900,1758718233562,-480.0,0.00019178,2]
[387408901,1758718233571,-480.0,0.00019178,2]
[387408902,1758718233581,-480.0,0.00019178,2]
[387408903,1758718233592,-480.0,0.00019178,2]
[387408905,1758718233602,-191.53223336,0.00019178,2]
[387408907,1758718233612,-480.0,0.00019178,2]
[387408909,1758718233622,-480.0,0.00019178,2]
[387408910,1758718233632,-480.0,0.00019178,2]
[387408912,1758718233642,-480.0,0.00019178,2]
[387408914,1758718233652,-480.0,0.00019178,2]
[387408916,1758718233662,-480.0,0.00019178,2]
[387408918,1758718233672,-197.41544201,0.00019178,2]
[387408920,1758718233682,-480.0,0.00019178,2]
[387408922,1758718233692,-480.0,0.00019178,2]
[387408924,1758718233701,-480.0,0.00019178,2]
[387408926,1758718233711,-502.1090063,0.00019178,2]
[387408928,1758718233721,-480.0,0.00019178,2]
[387408930,1758718233730,-480.0,0.00019178,2]
[387408932,1758718233740,-480.0,0.00019178,2]
[387408934,1758718233749,-480.0,0.00019178,2]
[387408936,1758718233759,-480.0,0.00019178,2]
[387408938,1758718233768,-480.0,0.00019178,2]
[387408940,1758718233778,-480.0,0.00019178,2]
[387408941,1758718233787,-480.0,0.00019178,2]
[387408943,1758718233797,-480.0,0.00019178,2]
[387408945,1758718233807,-480.0,0.00019178,2]
[387408947,1758718233817,-480.0,0.00019178,2]
[387408949,1758718233831,-480.0,0.00019178,2]
[387408951,1758718233841,-480.0,0.00019178,2]
[387408953,1758718233851,-480.0,0.00019178,2]
[387408955,1758718233860,-460.8097944,0.00019178,2]
[387408957,1758718233870,-480.0,0.00019178,2]
[387408959,1758718233879,-480.0,0.00019178,2]
[387408961,1758718233889,-480.0,0.00019178,2]
[387408963,1758718233898,-480.0,0.00019178,2]
[387408965,1758718233907,-480.0,0.00019178,2]
[387408967,1758718233917,-480.0,0.00019178,2]
[387408969,1758718233927,-480.0,0.00019178,2]
[387408971,1758718233936,-480.0,0.00019178,2]
[387408973,1758718233946,-480.0,0.00019178,2]
[387408975,1758718233955,-480.0,0.00019178,2]
[387408976,1758718233965,-480.0,0.00019178,2]
[387408977,1758718233974,-480.0,0.00019178,2]
[387408979,1758718233984,-480.0,0.00019178,2]
[387408981,1758718233994,-483.53601391,0.00019178,2]
[387408982,1758718234003,-480.0,0.00019178,2]
[387408983,1758718234013,-480.0,0.00019178,2]
[387408984,1758718234022,-480.0,0.00019178,2]
[387408986,1758718234031,-480.77169187,0.00019178,2]
[387408988,1758718234041,-480.99106975,0.00019178,2]
[387408989,1758718234050,-480.0,0.00019178,2]
[387408990,1758718234059,-480.0,0.00019178,2]
[387408991,1758718234068,-480.0,0.00019178,2]
[387408992,1758718234078,-480.0,0.00019178,2]
[387408993,1758718234088,-480.0,0.00019178,2]
[387408994,1758718234097,-480.0,0.00019178,2]
[387408995,1758718234107,-480.0,0.00019178,2]
[387408996,1758718234116,-480.0,0.00019178,2]
[387408997,1758718234126,-480.0,0.00019178,2]
[387408998,1758718234135,-480.0,0.00019178,2]
[387408999,1758718234145,-480.0,0.00019178,2]
[387409000,1758718234155,-482.29998701,0.00019178,2]
[387409001,1758718234164,-480.0,0.00019178,2]
[387409002,1758718234174,-481.71497989,0.00019178,2]
[387409003,1758718234184,-480.64581785,0.00019178,2]
[387409004,1758718234194,-480.0,0.00019178,2]
[387409005,1758718234203,-480.0,0.00019178,2]
[387409006,1758718234212,-480.0,0.00019178,2]
[387409007,1758718234222,-169.51111535,0.00019178,2]
[387409008,1758718234241,-310.48888465,0.00019178,2]
[387409009,1758718234250,-480.0,0.00019178,2]
[387409010,1758718234260,-480.0,0.00019178,2]
[387409011,1758718234269,-513.5,0.00019178,2]
[387409012,1758718234279,-480.28329973,0.00019178,2]
[387409013,1758718234288,-480.0,0.00019178,2]
[387409014,1758718234298,-480.0,0.00019178,2]
[387409015,1758718234307,-480.0,0.00019178,2]
[387409016,1758718234317,-480.0,0.00019178,2]
[387409017,1758718234326,-480.0,0.00019178,2]
[387409018,1758718234336,-480.0,0.00019178,2]
[387409019,1758718234346,-480.62860421,0.00019178,2]
[387409020,1758718234355,-452.61769046,0.00019178,2]
[387409021,1758718234365,-480.0,0.00019178,2]
[387409022,1758718234375,-480.0,0.00019178,2]
[387409023,1758718234384,-480.0,0.00019178,2]
[387409024,1758718234394,-324.0344608,0.00019178,2]
[387409025,1758718234403,-480.0,0.00019178,2]
[387409026,1758718234413,-480.0,0.00019178,2]
[387409027,1758718234423,-480.0,0.00019178,2]
[387409028,1758718234432,-480.0,0.00019178,2]
[387409029,1758718234442,-480.0,0.00019178,2]
[387409030,1758718234452,-480.0,0.00019178,2]
[387409031,1758718234461,-520.07896355,0.00019178,2]
[387409032,1758718234471,-480.0,0.00019178,2]
[387409033,1758718234480,-480.0,0.00019178,2]
[387409034,1758718234490,-480.0,0.00019178,2]
[387409035,1758718234499,-481.35010906,0.00019178,2]
[387409036,1758718234509,-486.51854135,0.00019178,2]
[387409037,1758718234518,-480.0,0.00019178,2]
[387409038,1758718234528,-480.0,0.00019178,2]
[387409039,1758718234537,-480.0,0.00019178,2]
[387409040,1758718234547,-480.0,0.00019178,2]
[387409041,1758718234556,-480.0,0.00019178,2]
[387409042,1758718234566,-480.0,0.00019178,2]
[387409043,1758718234575,-480.78129978,0.00019178,2]
[387409044,1758718234585,-480.0,0.00019178,2]
[387409045,1758718234595,-205.18750691,0.00019178,2]
[387409046,1758718234604,-480.0,0.00019178,2]
[387409047,1758718234614,-480.0,0.00019178,2]
[387409048,1758718234623,-480.0,0.00019178,2]
[387409049,1758718234633,-480.0,0.00019178,2]
[387409050,1758718234642,-480.0,0.00019178,2]
[387409051,1758718234652,-803.76,0.00019178,2]
[387409052,1758718234662,-480.0,0.00019178,2]
[387409053,1758718234672,-480.0,0.00019178,2]
[387409054,1758718234681,-621.3090608,0.00019178,2]
[387409055,1758718234690,-480.0,0.00019178,2]
[387409056,1758718234700,-480.0,0.00019178,2]
[387409057,1758718234709,-480.0,0.00019178,2]
[387409058,1758718234719,-480.0,0.00019178,2]
[387409059,1758718234729,-480.0,0.00019178,2]
[387409060,1758718234738,-480.0,0.00019178,2]
[387409061,1758718234750,-482.96370396,0.00019178,2]
[387409062,1758718234759,-480.0,0.00019178,2]
[387409063,1758718234769,-480.0,0.00019178,2]
[387409064,1758718234778,-480.0,0.00019178,2]
[387409065,1758718234788,-480.0,0.00019178,2]
[387409066,1758718234797,-480.0,0.00019178,2]
[387409067,1758718234806,-480.0,0.00019178,2]
[387409068,1758718234816,-480.0,0.00019178,2]
[387409069,1758718234830,-480.0,0.00019178,2]
[387409070,1758718234841,-480.0,0.00019178,2]
[387409071,1758718234850,-480.0,0.00019178,2]
[387409072,1758718234860,-480.0,0.00019178,2]
[387409073,1758718234870,-480.0,0.00019178,2]
[387409074,1758718234879,-373.26195518,0.00019178,2]
[387409075,1758718234889,-339.94488029,0.00019178,2]
[387409076,1758718234903,-372.56263382,0.00019178,2]
[387409077,1758718234913,-756.38,0.00019178,2]
[387409078,1758718234923,-480.0,0.00019178,2]
[387409079,1758718234933,-480.0,0.00019178,2]
[387409080,1758718234943,-480.0,0.00019178,2]
[387409081,1758718234953,-518.463846,0.00019178,2]
[387409082,1758718234962,-480.0,0.00019178,2]
[387409083,1758718234972,-480.0,0.00019178,2]
[387409084,1758718234981,-480.0,0.00019178,2]
[387409085,1758718234991,-480.0,0.00019178,2]
[387409086,1758718235000,-480.0,0.00019178,2]
[387409087,1758718235010,-482.75868655,0.00019178,2]
[387409088,1758718235020,-3959.64,0.00019178,2]
[387409089,1758718235030,-480.0,0.00019178,2]
[387409090,1758718235040,-480.0,0.00019178,2]
[387409091,1758718235049,-480.0,0.00019178,2]
[387409092,1758718235059,-480.0,0.00019178,2]
[387409093,1758718235071,-480.0,0.00019178,2]
[387409094,1758718235080,-480.0,0.00019178,2]
[387409095,1758718235090,-480.83448089,0.00019178,2]
[387409096,1758718235101,-498.35076471,0.00019178,2]
[387409097,1758718235110,-480.0,0.00019178,2]
[387409098,1758718235119,-530.16,0.00019178,2]
[387409099,1758718235129,-480.0,0.00019178,2]
[387409100,1758718235139,-436.6746688,0.00019178,2]
[387409101,1758718235148,-480.0,0.00019178,2]
[387409102,1758718235158,-481.50572696,0.00019178,2]
[387409103,1758718235167,-480.0,0.00019178,2]